[Event "Polofinale MCR junioru 2023"]
[Site "Czech Republic"]
[Date "2023.11.14"]
[Round "5.11"]
[White "Tillman, Stanislav"]
[Black "Hlavina, Matous"]
[Result "1/2-1/2"]
[TimeControl "90 min per 40 moves + 15 min + 30 sec / move from move 1"]
[WhiteFideId "23714247"]
[BlackFideId "386650"]
[WhiteElo "2021"]
[BlackElo "2134"]

1. e4 {[%clk 01:30:58]} {[%emt 00:00:01]} d5 {[%clk 01:30:51]} {[%emt
00:00:10]} 2. exd5 {[%clk 01:31:17]} {[%emt 00:00:11]} Nf6 {[%clk 01:31:17]}
{[%emt 00:00:04]} 3. d4 {[%clk 01:31:24]} {[%emt 00:00:23]} Nxd5 {[%clk
01:31:36]} {[%emt 00:00:11]} 4. c4 {[%clk 01:31:36]} {[%emt 00:00:17]} Nb6
{[%clk 01:32:00]} {[%emt 00:00:06]} 5. Nf3 {[%clk 01:30:58]} {[%emt 00:01:09]}
g6 {[%clk 01:32:24]} {[%emt 00:00:06]} 6. Be2 {[%clk 01:30:30]} {[%emt
00:00:57]} Bg7 {[%clk 01:32:47]} {[%emt 00:00:07]} 7. Nc3 {[%clk 01:24:38]}
{[%emt 00:06:23]} O-O {[%clk 01:32:48]} {[%emt 00:00:28]} 8. h3 {[%clk
01:24:33]} {[%emt 00:00:35]} Nc6 {[%clk 01:32:16]} {[%emt 00:01:02]} 9. Be3
{[%clk 01:23:33]} {[%emt 00:01:29]} e5 {[%clk 01:32:28]} {[%emt 00:00:19]} 10.
d5 {[%clk 01:14:05]} {[%emt 00:09:59]} Ne7 {[%clk 01:30:01]} {[%emt 00:02:55]}
11. O-O {[%clk 01:00:26]} {[%emt 00:14:09]} Nf5 {[%clk 01:29:40]} {[%emt
00:00:51]} 12. Bc5 {[%clk 00:59:48]} {[%emt 00:01:09]} Re8 {[%clk 01:29:57]}
{[%emt 00:00:13]} 13. Ne4 {[%clk 00:56:51]} {[%emt 00:03:27]} Nd6 {[%clk
01:25:25]} {[%emt 00:05:03]} 14. Nxd6 {[%clk 00:40:11]} {[%emt 00:17:09]} cxd6
{[%clk 01:17:07]} {[%emt 00:08:47]} 15. Bb4 {[%clk 00:40:21]} {[%emt 00:00:21]}
a5 {[%clk 01:15:05]} {[%emt 00:02:32]} 16. Bc3 {[%clk 00:40:10]} {[%emt
00:00:40]} Bd7 {[%clk 01:14:27]} {[%emt 00:01:09]} 17. b3 {[%clk 00:38:30]}
{[%emt 00:02:11]} Qc7 {[%clk 01:05:48]} {[%emt 00:09:03]} 18. Qd2 {[%clk
00:35:35]} {[%emt 00:03:30]} Nc8 {[%clk 01:00:42]} {[%emt 00:05:37]} 19. a3
{[%clk 00:29:31]} {[%emt 00:06:33]} Ne7 {[%clk 00:59:55]} {[%emt 00:01:17]} 20.
b4 {[%clk 00:28:32]} {[%emt 00:01:29]} axb4 {[%clk 00:55:45]} {[%emt 00:04:40]}
21. axb4 {[%clk 00:28:49]} {[%emt 00:00:12]} b6 {[%clk 00:54:55]} {[%emt
00:01:20]} 22. Nxe5 {[%clk 00:21:35]} {[%emt 00:07:46]} Rxa1 {[%clk 00:50:10]}
{[%emt 00:05:14]} 23. Rxa1 {[%clk 00:21:51]} {[%emt 00:00:14]} Nxd5 {[%clk
00:47:35]} {[%emt 00:03:05]} 24. Qxd5 {[%clk 00:20:38]} {[%emt 00:01:43]} dxe5
{[%emt 00:02:16]} 25. Ra8 {[%clk 00:15:21]} {[%emt 00:05:46]} Rxa8 {[%clk
00:43:12]} {[%emt 00:03:08]} 26. Qxa8+ {[%clk 00:15:49]} {[%emt 00:00:02]} Bf8
{[%clk 00:42:26]} {[%emt 00:01:13]} 27. Qd5 {[%clk 00:14:09]} {[%emt 00:02:12]}
Bd6 {[%clk 00:42:03]} {[%emt 00:00:54]} 28. c5 {[%clk 00:04:47]} {[%emt
00:09:52]} bxc5 {[%clk 00:41:58]} {[%emt 00:00:35]} 29. bxc5 {[%clk 00:05:10]}
{[%emt 00:00:07]} Qxc5 {[%clk 00:42:00]} {[%emt 00:00:27]} 30. Qxc5 {[%clk
00:05:33]} {[%emt 00:00:07]} Bxc5 {[%clk 00:42:26]} {[%emt 00:00:05]} 31. Bxe5
{[%clk 00:05:47]} {[%emt 00:00:13]} Be6 {[%clk 00:42:23]} {[%emt 00:00:34]} 32.
Bf3 {[%clk 00:05:37]} {[%emt 00:00:41]} 1/2-1/2

[Event "Polofinale MCR junioru 2023"]
[Site "Czech Republic"]
[Date "2023.11.14"]
[Round "5.12"]
[White "Pecka, Jan"]
[Black "Janous, Marek"]
[Result "1/2-1/2"]
[TimeControl "90 min per 40 moves + 15 min + 30 sec / move from move 1"]
[WhiteFideId "23712520"]
[BlackFideId "23709650"]
[WhiteElo "1999"]
[BlackElo "2098"]

1. d4 {[%clk 01:30:40]} {[%emt 00:00:19]} Nf6 {[%clk 01:30:30]} {[%emt
00:00:30]} 2. c4 {[%clk 01:31:01]} {[%emt 00:00:10]} c5 {[%clk 01:29:24]}
{[%emt 00:01:36]} 3. d5 {[%clk 01:30:16]} {[%emt 00:01:11]} b5 {[%clk
01:29:42]} {[%emt 00:00:16]} 4. cxb5 {[%clk 01:30:28]} {[%emt 00:00:18]} a6
{[%clk 01:30:06]} {[%emt 00:00:06]} 5. b6 {[%clk 01:30:40]} {[%emt 00:00:19]}
e6 {[%clk 01:30:17]} {[%emt 00:00:18]} 6. Nc3 {[%clk 01:30:40]} {[%emt
00:00:30]} Qxb6 {[%clk 01:29:06]} {[%emt 00:01:40]} 7. g3 {[%clk 01:29:54]}
{[%emt 00:01:17]} exd5 {[%clk 01:27:31]} {[%emt 00:02:06]} 8. Bg2 {[%clk
01:29:21]} {[%emt 00:01:02]} Bb7 {[%clk 01:27:03]} {[%emt 00:00:58]} 9. Nxd5
{[%clk 01:29:24]} {[%emt 00:00:26]} Nxd5 {[%clk 01:27:11]} {[%emt 00:00:22]} 10.
Bxd5 {[%clk 01:29:47]} {[%emt 00:00:08]} Bxd5 {[%clk 01:27:02]} {[%emt
00:00:39]} 11. Qxd5 {[%clk 01:30:09]} {[%emt 00:00:08]} Qc6 {[%clk 01:27:30]}
{[%emt 00:00:02]} 12. Qe5+ {[%clk 01:29:19]} {[%emt 00:01:20]} Qe6 {[%clk
01:26:18]} {[%emt 00:01:41]} 13. Nf3 {[%clk 01:29:13]} {[%emt 00:00:37]} Qxe5
{[%clk 01:16:16]} {[%emt 00:10:33]} 14. Nxe5 {[%clk 01:27:33]} {[%emt
00:02:08]} d5 {[%clk 01:16:40]} {[%emt 00:00:06]} 15. b3 {[%clk 01:25:54]}
{[%emt 00:02:09]} Nd7 {[%emt 00:05:04]} 16. Nxd7 {[%clk 01:22:45]} {[%emt
00:01:06]} Kxd7 {[%clk 01:15:05]} {[%emt 00:00:05]} 17. Ba3 {[%clk 01:22:41]}
{[%emt 00:00:35]} Be7 {[%clk 01:15:18]} {[%emt 00:00:16]} 18. Rc1 {[%clk
01:23:01]} {[%emt 00:00:10]} Rhc8 {[%clk 01:15:29]} {[%emt 00:00:19]} 19. e3
{[%clk 01:22:47]} {[%emt 00:00:44]} a5 {[%clk 01:15:43]} {[%emt 00:00:16]} 20.
Bb2 {[%clk 01:17:59]} {[%emt 00:05:18]} g6 {[%clk 01:15:57]} {[%emt 00:00:16]}
21. Ke2 {[%clk 01:17:10]} {[%emt 00:01:19]} a4 {[%clk 01:15:45]} {[%emt
00:00:43]} 22. Rhd1 {[%clk 01:17:35]} {[%emt 00:00:04]} Ke6 {[%clk 01:15:22]}
{[%emt 00:00:52]} 23. e4 {[%clk 01:16:40]} {[%emt 00:01:26]} Rd8 {[%clk
01:09:14]} {[%emt 00:06:38]} 24. exd5+ {[%clk 01:13:16]} {[%emt 00:03:54]} Rxd5
{[%clk 01:09:17]} {[%emt 00:00:27]} 25. Rxd5 {[%clk 01:13:39]} {[%emt
00:00:07]} Kxd5 {[%clk 01:09:43]} {[%emt 00:00:04]} 26. Rd1+ {[%clk 01:13:20]}
{[%emt 00:00:49]} Kc6 {[%clk 01:09:28]} {[%emt 00:00:45]} 27. Be5 {[%clk
01:12:30]} {[%emt 00:01:19]} axb3 {[%clk 01:08:33]} {[%emt 00:01:26]} 28. axb3
{[%clk 01:11:48]} {[%emt 00:01:11]} Ra7 {[%clk 01:03:57]} {[%emt 00:05:07]} 29.
Rd3 {[%clk 01:10:08]} {[%emt 00:02:10]} Rd7 {[%clk 01:01:20]} {[%emt 00:03:06]}
30. Rxd7 {[%clk 01:06:42]} {[%emt 00:03:57]} Kxd7 {[%clk 01:01:48]} {[%emt
00:00:02]} 31. Kd3 {[%clk 01:06:46]} {[%emt 00:00:26]} Ke6 {[%clk 01:02:12]}
{[%emt 00:00:06]} 32. Bf4 {[%clk 01:06:53]} {[%emt 00:00:22]} Kd5 {[%clk
01:02:29]} {[%emt 00:00:13]} 33. Be3 {[%clk 01:06:13]} {[%emt 00:01:11]} Bd6
{[%clk 00:59:58]} {[%emt 00:03:01]} 34. Bg5 {[%clk 01:04:57]} {[%emt 00:01:45]}
Be5 {[%clk 00:59:17]} {[%emt 00:01:12]} 35. Be3 {[%clk 01:05:14]} {[%emt
00:00:12]} Bd6 {[%clk 00:59:31]} {[%emt 00:00:17]} 36. Bg5 {[%clk 01:05:34]}
{[%emt 00:00:09]} Ke5 {[%emt 00:00:05]} 37. Ke4+ 1/2-1/2

[Event "Polofinale MCR junioru 2023"]
[Site "Czech Republic"]
[Date "2023.11.14"]
[Round "5.13"]
[White "Trojan, Matyas"]
[Black "Jirasko, Miroslav"]
[Result "0-1"]
[TimeControl "90 min per 40 moves + 15 min + 30 sec / move from move 1"]
[WhiteFideId "23710764"]
[BlackFideId "23729414"]
[WhiteElo "1957"]
[BlackElo "2084"]

1. e4 {[%clk 01:30:57]} {[%emt 00:00:03]} c5 {[%clk 01:29:12]} {[%emt
00:01:47]} 2. Nf3 {[%clk 01:31:22]} {[%emt 00:00:06]} Nc6 {[%clk 01:29:25]}
{[%emt 00:00:18]} 3. d4 {[%clk 01:31:46]} {[%emt 00:00:05]} cxd4 {[%clk
01:29:52]} {[%emt 00:00:03]} 4. Nxd4 {[%clk 01:32:10]} {[%emt 00:00:07]} e5
{[%clk 01:30:12]} {[%emt 00:00:10]} 5. Nb5 {[%clk 01:32:35]} {[%emt 00:00:05]}
d6 {[%clk 01:30:39]} {[%emt 00:00:03]} 6. c4 {[%clk 01:32:57]} {[%emt
00:00:07]} g6 {[%clk 01:31:03]} {[%emt 00:00:07]} 7. Bd3 {[%clk 01:32:59]}
{[%emt 00:00:27]} Bg7 {[%clk 01:24:57]} {[%emt 00:06:37]} 8. O-O {[%clk
01:31:49]} {[%emt 00:01:38]} Nf6 {[%clk 01:22:30]} {[%emt 00:02:58]} 9. b3
{[%clk 01:30:14]} {[%emt 00:01:35]} a6 {[%clk 01:21:01]} {[%emt 00:02:00]} 10.
N5c3 {[%clk 01:31:05]} {[%emt 00:00:08]} O-O {[%clk 01:21:08]} {[%emt
00:00:23]} 11. Bb2 {[%clk 01:31:02]} {[%emt 00:00:32]} Nd4 {[%clk 01:09:18]}
{[%emt 00:12:22]} 12. Nd5 {[%clk 01:23:26]} {[%emt 00:08:06]} Nh5 {[%clk
01:04:28]} {[%emt 00:05:20]} 13. Bxd4 {[%clk 01:20:33]} {[%emt 00:03:23]} exd4
{[%clk 01:04:52]} {[%emt 00:00:06]} 14. Nd2 {[%emt 00:02:55]} Be6 {[%clk
00:59:56]} {[%emt 00:03:10]} 15. f4 {[%clk 01:15:32]} {[%emt 00:05:21]} Rc8
{[%clk 00:52:52]} {[%emt 00:07:35]} 16. f5 {[%clk 01:12:44]} {[%emt 00:03:17]}
Bxd5 {[%clk 00:52:12]} {[%emt 00:01:10]} 17. exd5 {[%clk 01:12:57]} {[%emt
00:00:17]} Qg5 {[%clk 00:48:56]} {[%emt 00:03:46]} 18. Ne4 {[%clk 01:07:19]}
{[%emt 00:06:08]} Qe3+ {[%clk 00:48:06]} {[%emt 00:01:20]} 19. Kh1 {[%clk
01:07:22]} {[%emt 00:00:27]} Be5 {[%clk 00:44:38]} {[%emt 00:03:57]} 20. f6
{[%emt 00:19:23]} Qh6 {[%clk 00:39:39]} {[%emt 00:00:02]} 21. Rf3 {[%clk
00:46:50]} {[%emt 00:07:38]} Nf4 {[%clk 00:38:16]} {[%emt 00:01:52]} 22. g3
{[%clk 00:46:50]} {[%emt 00:00:29]} Nxd3 {[%clk 00:34:32]} {[%emt 00:04:15]} 23.
Qxd3 {[%clk 00:47:13]} {[%emt 00:00:07]} b5 {[%clk 00:34:58]} {[%emt 00:00:04]}
24. Re1 {[%clk 00:39:04]} {[%emt 00:08:39]} bxc4 {[%clk 00:35:08]} {[%emt
00:00:21]} 25. bxc4 {[%clk 00:39:20]} {[%emt 00:00:14]} Rb8 {[%clk 00:34:14]}
{[%emt 00:01:24]} 26. Re2 {[%clk 00:37:55]} {[%emt 00:01:54]} Qc1+ {[%clk
00:33:12]} {[%emt 00:01:32]} 27. Kg2 {[%clk 00:38:20]} {[%emt 00:00:05]} Rb1
{[%clk 00:29:31]} {[%emt 00:04:11]} 28. g4 {[%clk 00:36:53]} {[%emt 00:01:57]}
Rfb8 {[%clk 00:21:33]} {[%emt 00:08:29]} 29. Nd2 {[%clk 00:26:46]} {[%emt
00:10:37]} Qh1+ {[%clk 00:21:26]} {[%emt 00:00:36]} 30. Kh3 {[%clk 00:27:05]}
{[%emt 00:00:11]} Rc1 {[%clk 00:13:04]} {[%emt 00:08:53]} 31. Ref2 {[%clk
00:17:47]} {[%emt 00:09:48]} Rb2 {[%clk 00:12:17]} {[%emt 00:01:16]} 32. Qa3
{[%clk 00:16:01]} {[%emt 00:02:16]} Rxd2 {[%clk 00:06:51]} {[%emt 00:05:57]} 33.
Rxd2 {[%clk 00:15:35]} {[%emt 00:00:56]} Rc3 {[%clk 00:07:16]} {[%emt
00:00:04]} 34. Rxc3 {[%clk 00:15:54]} {[%emt 00:00:11]} dxc3 {[%clk 00:07:42]}
{[%emt 00:00:05]} 35. Rf2 {[%clk 00:12:00]} {[%emt 00:04:23]} Qg1 {[%clk
00:06:44]} {[%emt 00:01:27]} 36. Qa4 {[%clk 00:08:21]} {[%emt 00:04:10]} Bxf6
{[%clk 00:04:19]} {[%emt 00:02:55]} 37. Rxf6 {[%clk 00:08:19]} {[%emt
00:00:32]} Qe3+ {[%clk 00:04:39]} {[%emt 00:00:11]} 38. Kg2 {[%clk 00:07:27]}
{[%emt 00:01:22]} Qe4+ {[%clk 00:04:20]} {[%emt 00:00:49]} 39. Rf3 {[%clk
00:04:08]} {[%emt 00:03:49]} c2 {[%clk 00:04:20]} {[%emt 00:00:30]} 40. Qd7
{[%clk 00:00:32]} {[%emt 00:04:05]} f5 {[%clk 00:01:04]} {[%emt 00:03:46]} 41.
Qd8+ {[%clk 00:10:50]} {[%emt 00:05:42]} Kg7 {[%clk 00:16:41]} {[%emt
00:00:23]} 42. Qd7+ {[%clk 00:03:08]} {[%emt 00:08:13]} Kh6 {[%clk 00:13:19]}
{[%emt 00:03:51]} 43. g5+ {[%clk 00:00:40]} {[%emt 00:02:57]} Kxg5 {[%clk
00:12:57]} {[%emt 00:00:53]} 44. Qxh7 {[%clk 00:00:31]} {[%emt 00:00:40]} c1=Q
{[%clk 00:12:47]} {[%emt 00:00:39]} 45. h4+ {[%clk 00:00:50]} {[%emt 00:00:11]}
Kf6 {[%clk 00:12:02]} {[%emt 00:01:14]} 46. Qh8+ {[%clk 00:00:59]} {[%emt
00:00:22]} Ke7 {[%clk 00:12:24]} {[%emt 00:00:08]} 47. Qg7+ {[%clk 00:01:02]}
{[%emt 00:00:27]} Kd8 {[%clk 00:12:45]} {[%emt 00:00:07]} 48. Qf8+ {[%clk
00:00:58]} {[%emt 00:00:36]} Kd7 {[%clk 00:13:07]} {[%emt 00:00:08]} 49. Qf7+
{[%clk 00:01:03]} {[%emt 00:00:25]} Qe7 {[%clk 00:13:32]} {[%emt 00:00:05]} 50.
Qxg6 {[%clk 00:01:17]} {[%emt 00:00:17]} Qe2+ {[%clk 00:13:43]} {[%emt
00:00:18]} 0-1

[Event "Polofinale MCR junioru 2023"]
[Site "Czech Republic"]
[Date "2023.11.14"]
[Round "5.14"]
[White "Pelc, Adam"]
[Black "Bezdek, Tomas"]
[Result "1/2-1/2"]
[TimeControl "90 min per 40 moves + 15 min + 30 sec / move from move 1"]
[WhiteFideId "23723033"]
[BlackFideId "23733551"]
[WhiteElo "1856"]
[BlackElo "2078"]

1. e4 {[%clk 01:30:55]} {[%emt 00:00:04]} d6 {[%clk 01:30:26]} {[%emt
00:00:34]} 2. d4 {[%clk 01:30:37]} {[%emt 00:00:48]} Nf6 {[%clk 01:30:49]}
{[%emt 00:00:07]} 3. Nc3 {[%clk 01:29:55]} {[%emt 00:01:12]} Nbd7 {[%clk
01:31:09]} {[%emt 00:00:10]} 4. Bc4 {[%clk 01:27:15]} {[%emt 00:03:10]} e5
{[%clk 01:29:53]} {[%emt 00:01:47]} 5. Nf3 {[%clk 01:26:05]} {[%emt 00:01:40]}
Be7 {[%clk 01:30:11]} {[%emt 00:00:12]} 6. dxe5 {[%clk 01:24:23]} {[%emt
00:02:12]} dxe5 {[%clk 01:28:18]} {[%emt 00:02:23]} 7. O-O {[%clk 01:17:02]}
{[%emt 00:07:50]} O-O {[%clk 01:25:59]} {[%emt 00:02:50]} 8. Qe2 {[%clk
01:12:46]} {[%emt 00:04:45]} c6 {[%clk 01:25:45]} {[%emt 00:00:45]} 9. a4
{[%clk 01:12:04]} {[%emt 00:01:12]} Qc7 {[%clk 01:24:42]} {[%emt 00:01:32]} 10.
b3 {[%clk 00:51:43]} {[%emt 00:20:51]} b6 {[%clk 01:12:55]} {[%emt 00:12:17]}
11. Nh4 {[%clk 00:40:06]} {[%emt 00:12:07]} Nc5 {[%clk 01:05:41]} {[%emt
00:07:45]} 12. Nf5 {[%clk 00:38:22]} {[%emt 00:02:13]} Bxf5 {[%clk 00:58:24]}
{[%emt 00:07:48]} 13. exf5 {[%clk 00:38:41]} {[%emt 00:00:10]} a6 {[%clk
00:55:35]} {[%emt 00:03:20]} 14. Be3 {[%clk 00:25:54]} {[%emt 00:13:16]} b5
{[%clk 00:52:25]} {[%emt 00:03:40]} 15. axb5 {[%clk 00:25:08]} {[%emt
00:01:17]} axb5 {[%clk 00:52:46]} {[%emt 00:00:09]} 16. Rxa8 {[%clk 00:25:27]}
{[%emt 00:00:11]} Rxa8 {[%clk 00:53:03]} {[%emt 00:00:12]} 17. Bxc5 {[%clk
00:25:50]} {[%emt 00:00:08]} Bxc5 {[%clk 00:53:09]} {[%emt 00:00:23]} 18. Bd3
{[%clk 00:26:14]} {[%emt 00:00:06]} Bd4 {[%clk 00:46:32]} {[%emt 00:07:05]} 19.
Ne4 {[%clk 00:25:26]} {[%emt 00:01:20]} Nd5 {[%clk 00:46:11]} {[%emt 00:00:51]}
20. f6 {[%clk 00:23:28]} {[%emt 00:02:28]} g6 {[%clk 00:44:15]} {[%emt
00:02:27]} 21. Qg4 {[%clk 00:21:38]} {[%emt 00:02:19]} Nc3 {[%clk 00:24:03]}
{[%emt 00:20:42]} 22. Qf3 {[%clk 00:14:53]} {[%emt 00:07:15]} b4 {[%clk
00:19:22]} {[%emt 00:05:11]} 23. Ng5 {[%clk 00:13:16]} {[%emt 00:02:08]} Nd5
{[%clk 00:17:44]} {[%emt 00:02:08]} 24. Ne4 {[%clk 00:09:36]} {[%emt 00:04:09]}
Nc3 {[%clk 00:16:01]} {[%emt 00:02:13]} 25. Ng5 {[%clk 00:07:04]} {[%emt
00:03:03]} Nd5 {[%clk 00:15:59]} {[%emt 00:00:32]} 1/2-1/2

[Event "Polofinale MCR junioru 2023"]
[Site "Czech Republic"]
[Date "2023.11.14"]
[Round "5.15"]
[White "Steinbauer, Sebastian"]
[Black "Stocek, Martin"]
[Result "0-1"]
[TimeControl "90 min per 40 moves + 15 min + 30 sec / move from move 1"]
[WhiteFideId "399272"]
[BlackFideId "380121"]
[WhiteElo "1869"]
[BlackElo "2125"]

1. e4 {[%clk 01:30:13]} {[%emt 00:00:46]} c6 {[%clk 01:30:53]} {[%emt
00:00:08]} 2. Nc3 {[%clk 01:30:36]} {[%emt 00:00:07]} d5 {[%clk 01:31:17]}
{[%emt 00:00:05]} 3. Nf3 {[%clk 01:31:02]} {[%emt 00:00:05]} Bg4 {[%clk
01:31:39]} {[%emt 00:00:07]} 4. h3 {[%clk 01:31:27]} {[%emt 00:00:06]} Bxf3
{[%clk 01:32:05]} {[%emt 00:00:04]} 5. Qxf3 {[%clk 01:31:52]} {[%emt 00:00:06]}
e6 {[%clk 01:32:23]} {[%emt 00:00:11]} 6. exd5 {[%clk 01:31:00]} {[%emt
00:01:22]} cxd5 {[%clk 01:32:45]} {[%emt 00:00:08]} 7. Bb5+ {[%clk 01:31:17]}
{[%emt 00:00:13]} Nc6 {[%clk 01:32:48]} {[%emt 00:00:27]} 8. O-O {[%clk
01:31:32]} {[%emt 00:00:15]} Nf6 {[%clk 01:32:30]} {[%emt 00:00:48]} 9. d3
{[%clk 01:28:13]} {[%emt 00:03:49]} Be7 {[%clk 01:32:27]} {[%emt 00:00:32]} 10.
Ne2 {[%clk 01:25:50]} {[%emt 00:02:54]} O-O {[%clk 01:32:03]} {[%emt 00:00:53]}
11. d4 {[%clk 01:25:19]} {[%emt 00:01:02]} Qb6 {[%clk 01:29:59]} {[%emt
00:02:33]} 12. Bxc6 {[%clk 01:25:34]} {[%emt 00:00:16]} Qxc6 {[%clk 01:28:10]}
{[%emt 00:02:19]} 13. c3 {[%clk 01:24:22]} {[%emt 00:01:42]} b5 {[%clk
01:27:31]} {[%emt 00:01:08]} 14. a3 {[%clk 01:23:30]} {[%emt 00:01:23]} a5
{[%clk 01:26:05]} {[%emt 00:01:56]} 15. Bg5 {[%clk 01:21:26]} {[%emt 00:02:34]}
Qb7 {[%clk 01:21:06]} {[%emt 00:05:28]} 16. Ng3 {[%clk 01:21:24]} {[%emt
00:00:32]} Rfc8 {[%clk 01:19:08]} {[%emt 00:02:28]} 17. Rfc1 {[%clk 01:19:45]}
{[%emt 00:02:10]} Rab8 {[%clk 01:18:01]} {[%emt 00:01:37]} 18. Bf4 {[%clk
01:19:42]} {[%emt 00:00:33]} Ra8 {[%clk 01:17:32]} {[%emt 00:00:59]} 19. Bg5
{[%clk 01:18:47]} {[%emt 00:01:25]} Ra6 {[%clk 01:13:45]} {[%emt 00:04:16]} 20.
Nh5 {[%clk 01:18:01]} {[%emt 00:01:16]} Nxh5 {[%clk 01:02:51]} {[%emt
00:11:24]} 21. Bxe7 {[%clk 01:17:35]} {[%emt 00:00:57]} Qxe7 {[%clk 01:03:05]}
{[%emt 00:00:16]} 22. Qxh5 {[%clk 01:17:59]} {[%emt 00:00:06]} Rac6 {[%clk
01:03:23]} {[%emt 00:00:11]} 23. Qd1 {[%clk 01:17:21]} {[%emt 00:01:09]} g6
{[%clk 01:02:13]} {[%emt 00:01:41]} 24. Qd2 {[%clk 01:17:11]} {[%emt 00:00:39]}
Rb8 {[%clk 00:57:48]} {[%emt 00:04:55]} 25. b4 {[%clk 01:13:25]} {[%emt
00:04:16]} Qc7 {[%clk 00:56:49]} {[%emt 00:01:28]} 26. Rc2 {[%clk 01:12:50]}
{[%emt 00:01:07]} Rc8 {[%clk 00:56:06]} {[%emt 00:01:13]} 27. Rac1 {[%clk
01:10:58]} {[%emt 00:02:21]} Rc4 {[%clk 00:54:09]} {[%emt 00:02:26]} 28. Qe3
{[%clk 01:10:27]} {[%emt 00:01:01]} axb4 {[%clk 00:38:42]} {[%emt 00:15:57]} 29.
axb4 {[%clk 01:10:51]} {[%emt 00:00:07]} Qd6 {[%clk 00:35:57]} {[%emt
00:03:15]} 30. f4 {[%clk 01:10:38]} {[%emt 00:00:43]} R8c6 {[%clk 00:34:13]}
{[%emt 00:02:13]} 31. g3 {[%clk 01:10:46]} {[%emt 00:00:23]} Qc7 {[%clk
00:34:03]} {[%emt 00:00:40]} 32. Qd3 {[%clk 01:10:27]} {[%emt 00:00:49]} f6
{[%clk 00:33:32]} {[%emt 00:01:01]} 33. Kf2 {[%clk 01:08:48]} {[%emt 00:02:09]}
Kg7 {[%emt 00:05:26]} 34. Re2 {[%clk 01:02:26]} {[%emt 00:01:46]} g5 {[%clk
00:17:34]} {[%emt 00:16:37]} 35. fxg5 {[%clk 01:00:41]} {[%emt 00:02:16]} Rxc3
{[%clk 00:16:28]} {[%emt 00:01:36]} 36. gxf6+ {[%clk 00:57:21]} {[%emt
00:03:50]} Kxf6 {[%clk 00:16:04]} {[%emt 00:00:53]} 37. Rxc3 {[%clk 00:56:49]}
{[%emt 00:01:02]} Rxc3 {[%clk 00:16:23]} {[%emt 00:00:11]} 38. Qd2 {[%clk
00:57:12]} {[%emt 00:00:08]} Qxg3+ {[%clk 00:16:46]} {[%emt 00:00:06]} 39. Kf1
{[%clk 00:57:26]} {[%emt 00:00:16]} Rf3+ {[%clk 00:15:14]} {[%emt 00:02:02]} 40.
Rf2 {[%clk 00:57:52]} {[%emt 00:00:05]} Qxf2+ {[%clk 00:15:37]} {[%emt
00:00:07]} 41. Qxf2 {[%clk 00:58:17]} {[%emt 00:00:05]} Rxf2+ {[%clk 00:16:02]}
{[%emt 00:00:05]} 42. Kxf2 {[%clk 00:58:43]} {[%emt 00:00:04]} e5 {[%clk
00:15:59]} {[%emt 00:00:32]} 43. Ke3 {[%clk 00:58:57]} {[%emt 00:00:17]} Kf5
{[%clk 00:15:45]} {[%emt 00:00:43]} 44. h4 {[%clk 00:59:11]} {[%emt 00:00:16]}
h5 {[%emt 00:00:41]} 0-1